Workbook

Sheet Forside
C3: Holdbarhetsforsøk
C5: Modell: | D5: Buksemetoden
C8: Forsøket er utført ved: | D8: Avd for Medisinsk biokjemi, Rikshospitalet
C9: Utført I perioden: | D9: 27.01.20-09.02.20
C10: Kontaktperson: | D10: Johanne Holstad (Jholst@ous-hf.no), Muna Dahir Ahmed(mundah@ous-hf.no)
C11: (navn, epost eller telefonnr.)
C12: Navn på komponent: | D12: TNT
C13: Prøvemateriale: | D13: Heparinplasma

Sheet Beskrivelse av forsø
A1: BESKRIVELSE AV FORSØKET
A2: TNT
A3: Komponent
A4: Hvilket instrument er benyttet?
A5: Roche, cobas 8000, e602
A7: Hvilken analysemetode er benyttet?
A8: ECLIA
A10: Hvilket reagens er benyttet?
A11: TNT
A13: Er forsøket gjennomført under tilsvarende betingelser som de som gjelder ved vanlig rutinedrift (kryss av):
A14: x | B14: ja, gjennomført under rutinebetingelser
B15: ja, rutinebetingelser er simulert
B16: nei
A18: Hvilke transportformer er testet/simulert?
B19: Postgang
B20: Hentetjeneste
B21: Rørpost
A22: Ingen, kun oppbevaring | B22: Annet:
A24: NB! Sett inn flere rader dersom du trenger det.
A25: Gi en beskrivelse av hver betingelse: | B25: Betingelse 0 (Ref) | C25: Betingelse 1 | D25: Betingelse 2 | E25: Betingelse 3 | F25: Betingelse 4 | G25: Betingelse 5
A26: Prøverør type | B26: Vacuette med separasjonsgel (heparinplasma)
A27: Tid fra prøvetaking til sentrifugering (min.) | B27: 30 min
A28: Tid fra prøvetaking til analysering (min/timer/dager/uker) | B28: 1 time | C28: 1 døgn | D28: 2 døgn | E28: 3 døgn | F28: 4 døgn | G28: 5 døgn
A29: Tid fra sentrifugering til analysering (min/timer/dager/uker) | B29: 20 min
A30: Temperatur før sentrifugering (◦C) | B30: Romtemperatur
A31: Temperatur etter sentrifugering (◦C) | B31: Romtemperatur | C31: 2-8 C | D31: 2-8 C | E31: 2-8 C | F31: 2-8 C | G31: 2-8 C
A32: Sentrifugeringsegenskaper*:
A33: Hastighet (G) | B33: 2000
A34: Temperatur (◦C) | B34: 20
A35: Tid (min.) | B35: 10
A36: Spesielle betingelser
A37: Luftfuktighet (g/m3)
A38: pH
A39: Bruk av tørris (bare noter hvis brukt)
A40: Har prøven vært frosset? Oppgi temperatur
A41: Andre betingelser (oppgi)
A43: *Dersom det er brukt dobbel sentrifugeringstid angis hastighet / tid / temperatur både for 1. og 2. sentrifugering

Sheet Bukseplott
A1: Holdbarhet, buksemetode | H1: Konstant analytisk CV for alle konsentrasjoner (J/N)? | K1: J | L1: =IF(K1="N","Sa","CVa") -> CVa | M1: 0.06 | N1: Sigma
L2: Mål 1 | M2: 0.05 | N2: =Mål_1/s -> 0.8333333333
L3: Mål 2 | N3: =Mål_2/s -> 0
A4: =OR(K1="N",K1="n") -> FALSE | B4: 0-still plott: CTRL x | E4: Rens plott: CTRL z | L4: TEa | M4: 0.1 | N4: =TEa/s -> 1.666666667
A5: Prøve nr | B5: 1 døgn | E5: 2 døgn | H5: 3døgn | K5: 9døgn | N5: 5 døgn
A6: %>TEa | B6: =AF6 -> 0.02631578947 | E6: =AG6 -> 0.02631578947 | H6: =AH6 -> 0.02631578947 | K6: =AI6 -> 0 | N6: =AJ6 -> 0 | AF6: =IF(COUNT(AF8:AF45)>0,(COUNTIF(AF8:AF45,">"&$N4)+COUNTIF(AF8:AF45,"<-"&$N4))/COUNT(AF8:AF45),"") -> 0.02631578947 | AG6: =IF(COUNT(AG8:AG45)>0,(COUNTIF(AG8:AG45,">"&$N4)+COUNTIF(AG8:AG45,"<-"&$N4))/COUNT(AG8:AG45),"") -> 0.02631578947 | AH6: =IF(COUNT(AH8:AH45)>0,(COUNTIF(AH8:AH45,">"&$N4)+COUNTIF(AH8:AH45,"<-"&$N4))/COUNT(AH8:AH45),"") -> 0.02631578947 | AI6: =IF(COUNT(AI8:AI45)>0,(COUNTIF(AI8:AI45,">"&$N4)+COUNTIF(AI8:AI45,"<-"&$N4))/COUNT(AI8:AI45),"") -> 0 | AJ6: =IF(COUNT(AJ8:AJ45)>0,(COUNTIF(AJ8:AJ45,">"&$N4)+COUNTIF(AJ8:AJ45,"<-"&$N4))/COUNT(AJ8:AJ45),"") -> 0
B7: Ref | C7: R | D7: Kum | E7: Ref | F7: R | G7: Kum | H7: Ref | I7: R | J7: Kum | K7: Ref | L7: R | M7: Kum | N7: Ref | O7: R | P7: Kum | S7: 1 | T7: =K_1 -> 0.8333333333 | V7: =K_2 -> 0 | AF7: =B5 -> 1 døgn | AG7: =E5 -> 2 døgn | AH7: =H5 -> 3døgn | AI7: =K5 -> 9døgn | AJ7: =N5 -> 5 døgn | AK7: TEa
A8: Prøve 1 | B8: 76 | C8: 76 | D8: =IF(C8="","",IF(fast_s,(C8-B8)/s,LN(C8/B8)/s)) -> 0 | E8: 76 | F8: 79 | G8: =IF(F8="","",IF(fast_s,(F8-E8)/s,LN(F8/E8)/s)) -> 0.6452418697 | H8: 76 | I8: 78 | J8: =IF(I8="","",IF(fast_s,(I8-H8)/s,LN(I8/H8)/s)) -> 0.4329247734 | K8: 76 | L8: 78 | M8: =IF(L8="","",IF(fast_s,(L8-K8)/s,LN(L8/K8)/s)) -> 0.4329247734 | N8: 76 | O8: 79 | P8: =IF(O8="","",IF(fast_s,(O8-N8)/s,LN(O8/N8)/s)) -> 0.6452418697 | R8: 1 | S8: 7.775 | T8: =R8/K_1^2 -> 1.44 | U8: =S8/K_1 -> 9.33 | V8: =R8/K_2^2 ->  | W8: =S8/K_2 ->  | X8: 1 | Y8: 7.775 | Z8: 0 | AA8: 6.194301075 | AB8: 0 | AC8: 4.786505376 | AD8: 0 | AE8: =A8 -> Prøve 1 | AF8: =IF(D8="","",D8) -> 0 | AG8: =IF(G8="","",G8) -> 0.6452418697 | AH8: =IF(J8="","",J8) -> 0.4329247734 | AI8: =IF(M8="","",M8) -> 0.4329247734 | AJ8: =IF(P8="","",P8) -> 0.6452418697 | AK8: =-N$4 -> -1.666666667 | AL8: =N$4 -> 1.666666667
A9: Prøve 2 | B9: 12247 | C9: 11914 | D9: =IF(C9="","",D8+IF(fast_s,(C9-B9)/s,LN(C9/B9)/s)) -> -0.4594471639 | E9: 12247 | F9: 12510 | G9: =IF(F9="","",G8+IF(fast_s,(F9-E9)/s,LN(F9/E9)/s)) -> 0.9993637937 | H9: 12247 | I9: 12414 | J9: =IF(I9="","",J8+IF(fast_s,(I9-H9)/s,LN(I9/H9)/s)) -> 0.6586557559 | K9: 12247 | L9: 12400 | M9: =IF(L9="","",M8+IF(fast_s,(L9-K9)/s,LN(L9/K9)/s)) -> 0.6398491663 | N9: 12247 | O9: 12612 | P9: =IF(O9="","",P8+IF(fast_s,(O9-N9)/s,LN(O9/N9)/s)) -> 1.13470408 | R9: 2 | S9: 8.275 | T9: =R9/K_1^2 -> 2.88 | U9: =S9/K_1 -> 9.93 | V9: =R9/K_2^2 ->  | W9: =S9/K_2 ->  | X9: 2 | Y9: 8.275 | Z9: 0 | AA9: 6.86206646 | AB9: 0 | AC9: 5.743931856 | AD9: 0 | AE9: =A9 -> Prøve 2 | AF9: =IF(D9="","",D9-D8) -> -0.4594471639 | AG9: =IF(G9="","",G9-G8) -> 0.354121924 | AH9: =IF(J9="","",J9-J8) -> 0.2257309825 | AI9: =IF(M9="","",M9-M8) -> 0.2069243929 | AJ9: =IF(P9="","",P9-P8) -> 0.4894622107 | AK9: =-N$4 -> -1.666666667 | AL9: =N$4 -> 1.666666667
A10: Prøve 3 | B10: 14.7 | C10: 14.8 | D10: -0.3464523808 | E10: 14.7 | F10: 15.2 | G10: 1.556829361 | H10: 14.7 | I10: 15.8 | J10: 1.861363193 | K10: 14.7 | L10: 15.9 | M10: 1.947709424 | N10: 14.7 | O10: 15.5 | P10: 2.017912916 | R10: 3 | S10: 8.775 | T10: 4.32 | U10: 10.53 | X10: 3 | Y10: 8.775 | Z10: 0 | AA10: 7.529831844 | AB10: 0 | AC10: 6.701358336 | AD10: 0 | AE10: Prøve 3 | AF10: =IF(D10="","",D10-D9) -> 0.1129947831 | AG10: 0.5574655678 | AH10: 1.202707437 | AI10: 1.307860257 | AJ10: 0.8832088357 | AK10: -1.666666667 | AL10: 1.666666667
A11: Prøve 4 | B11: 9.3 | C11: 9.9 | D11: 0.6955535689 | E11: 9.3 | F11: 9.9 | G11: 2.598835311 | H11: 9.3 | I11: 10 | J11: 3.070874741 | K11: 9.3 | L11: 9.7 | M11: 2.649567513 | N11: 9.3 | O11: 9.7 | P11: 2.719771005 | R11: 4 | S11: 9.275 | T11: 5.76 | U11: 11.13 | X11: 4 | Y11: 9.275 | Z11: 0 | AA11: 8.197597228 | AB11: 0 | AC11: 7.658784816 | AD11: 0.7 | AE11: Prøve 4 | AF11: 1.04200595 | AG11: 1.04200595 | AH11: 1.209511547 | AI11: 0.7018580892 | AJ11: 0.7018580892 | AK11: -1.666666667 | AL11: 1.666666667
A12: Prøve 5 | B12: 12.3 | C12: 12.9 | D12: 1.489354385 | E12: 12.3 | F12: 12.3 | G12: 2.598835311 | H12: 12.3 | I12: 12.9 | J12: 3.864675557 | K12: 12.3 | L12: 12.9 | M12: 3.443368329 | N12: 12.3 | O12: 12.8 | P12: 3.383869481 | R12: 5 | S12: 9.775 | T12: 7.2 | U12: 11.73 | X12: 5 | Y12: 9.775 | Z12: 0 | AA12: 8.865362613 | AB12: 0 | AC12: 8.616211296 | AD12: 2.7 | AE12: Prøve 5 | AF12: 0.7938008165 | AG12: 0 | AH12: 0.7938008165 | AI12: 0.7938008165 | AJ12: 0.6640984758 | AK12: -1.666666667 | AL12: 1.666666667
A13: Prøve 6 | B13: 135 | C13: 138 | D13: 1.855669497 | E13: 135 | F13: 133 | G13: 2.350074474 | H13: 135 | I13: 131 | J13: 3.363384637 | K13: 135 | L13: 134 | M13: 3.319452021 | N13: 135 | O13: 134 | P13: 3.259953173 | R13: 6 | S13: 10.275 | T13: 8.64 | U13: 12.33 | X13: 6 | Y13: 10.275 | Z13: 0 | AA13: 9.533127997 | AB13: 0 | AC13: 9.573637776 | AD13: 4 | AE13: Prøve 6 | AF13: 0.366315112 | AG13: -0.2487608369 | AH13: -0.5012909206 | AI13: -0.1239163081 | AJ13: -0.1239163081 | AK13: -1.666666667 | AL13: 1.666666667
A14: Prøve 7 | B14: 347 | C14: 352 | D14: 2.094109425 | E14: 347 | F14: 347 | G14: 2.350074474 | H14: 347 | I14: 354 | J14: 3.696253523 | K14: 347 | L14: 357 | M14: 3.792968718 | N14: 347 | O14: 367 | P14: 4.193904308 | R14: 7 | S14: 10.775 | T14: 10.08 | U14: 12.93 | X14: 7 | Y14: 10.775 | Z14: 0 | AA14: 10.20089338 | AB14: 0.8 | AC14: 10.53106426 | AD14: 5.4 | AE14: Prøve 7 | AF14: 0.2384399275 | AG14: 0 | AH14: 0.3328688864 | AI14: 0.4735166972 | AJ14: 0.9339511351 | AK14: -1.666666667 | AL14: 1.666666667
A15: Prøve 8 | B15: 7.9 | C15: 7.8 | D15: 1.881792329 | E15: 7.9 | F15: 8.1 | G15: 2.766762844 | H15: 7.9 | I15: 7.9 | J15: 3.696253523 | K15: 7.9 | L15: 7.9 | M15: 3.792968718 | N15: 7.9 | O15: 8.3 | P15: 5.017116897 | R15: 8 | S15: 11.275 | T15: 11.52 | U15: 13.53 | X15: 8 | Y15: 11.275 | Z15: 0 | AA15: 10.86865877 | AB15: 2.3 | AC15: 11.48849074 | AD15: 7 | AE15: Prøve 8 | AF15: -0.2123170963 | AG15: 0.4166883701 | AH15: 0 | AI15: 0 | AJ15: 0.8232125888 | AK15: -1.666666667 | AL15: 1.666666667
A16: Prøve 9 | B16: 4.4 | C16: 4.3 | D16: 1.498633692 | E16: 4.4 | F16: 4.4 | G16: 2.766762844 | H16: 4.4 | I16: 4.6 | J16: 4.437116232 | K16: 4.4 | L16: 4.5 | M16: 4.167516316 | N16: 4.4 | O16: 4.1 | P16: 3.840157443 | R16: 9 | S16: 11.775 | T16: 12.96 | U16: 14.13 | X16: 9 | Y16: 11.775 | Z16: 0 | AA16: 11.53642415 | AB16: 3.3 | AC16: 12.44591722 | AD16: 9.2 | AE16: Prøve 9 | AF16: -0.3831586371 | AG16: 0 | AH16: 0.7408627095 | AI16: 0.3745475975 | AJ16: -1.176959454 | AK16: -1.666666667 | AL16: 1.666666667
A17: Prøve 10 | B17: 67 | C17: 67 | D17: 1.498633692 | E17: 67 | F17: 70 | G17: 3.496806555 | H17: 67 | I17: 70 | J17: 5.167159943 | K17: 67 | L17: 69 | M17: 4.657747736 | N17: 67 | O17: 70 | P17: 4.570201154 | R17: 10 | S17: 12.275 | T17: 14.4 | U17: 14.73 | X17: 10 | Y17: 12.275 | Z17: 0 | AA17: 12.20418953 | AB17: 4.2 | AC17: 12.94377899 | AD17: 12.95005905 | AE17: Prøve 10 | AF17: 0 | AG17: 0.730043711 | AH17: 0.730043711 | AI17: 0.4902314201 | AJ17: 0.730043711 | AK17: -1.666666667 | AL17: 1.666666667
A18: Prøve 11 | B18: 189 | C18: 190 | D18: 1.586584643 | E18: 189 | F18: 188 | G18: 3.408389018 | H18: 189 | I18: 189 | J18: 5.167159943 | K18: 189 | L18: 186 | M18: 4.39107538 | N18: 189 | O18: 189 | P18: 4.570201154 | R18: 11 | S18: 12.775 | T18: 15.84 | U18: 15.33 | X18: 11 | Y18: 12.775 | Z18: 0 | AA18: 12.87195492 | AB18: 5.1 | AE18: Prøve 11 | AF18: 0.08795095168 | AG18: -0.08841753716 | AH18: 0 | AI18: -0.2666723558 | AJ18: 0 | AK18: -1.666666667 | AL18: 1.666666667
A19: Prøve 12 | B19: 109 | C19: 111 | D19: 1.889623295 | E19: 109 | F19: 111 | G19: 3.711427669 | H19: 109 | I19: 110 | J19: 5.319368003 | K19: 109 | L19: 109 | M19: 4.39107538 | N19: 109 | O19: 113 | P19: 5.170866762 | R19: 12 | S19: 13.275 | T19: 17.28 | U19: 15.93 | X19: 12 | Y19: 13.275 | Z19: 0 | AA19: 13.5397203 | AB19: 6 | AE19: Prøve 12 | AF19: 0.3030386514 | AG19: 0.3030386514 | AH19: 0.1522080594 | AI19: 0 | AJ19: 0.6006656081 | AK19: -1.666666667 | AL19: 1.666666667
A20: Prøve 13 | B20: 148 | C20: 149 | D20: 2.001857164 | E20: 148 | F20: 152 | G20: 4.155898454 | H20: 148 | I20: 152 | J20: 5.763838788 | K20: 148 | L20: 149 | M20: 4.50330925 | N20: 148 | O20: 152 | P20: 5.615337547 | R20: 13 | S20: 13.775 | T20: 18.72 | U20: 16.53 | X20: 13 | Y20: 13.775 | Z20: 0 | AA20: 14.20748569 | AB20: 7.3 | AE20: Prøve 13 | AF20: 0.1122338697 | AG20: 0.4444707847 | AH20: 0.4444707847 | AI20: 0.1122338697 | AJ20: 0.4444707847 | AK20: -1.666666667 | AL20: 1.666666667
A21: Prøve 14 | B21: 195 | C21: 198 | D21: 2.256315033 | E21: 195 | F21: 199 | G21: 4.494319557 | H21: 195 | I21: 199 | J21: 6.10225989 | K21: 195 | L21: 201 | M21: 5.008398408 | N21: 195 | O21: 198 | P21: 5.869795416 | R21: 14 | S21: 14.275 | T21: 20.16 | U21: 17.13 | X21: 14 | Y21: 14.275 | Z21: 0 | AA21: 14.87525107 | AB21: 8.7 | AE21: Prøve 14 | AF21: 0.2544578688 | AG21: 0.3384211027 | AH21: 0.3384211027 | AI21: 0.5050891583 | AJ21: 0.2544578688 | AK21: -1.666666667 | AL21: 1.666666667
A22: Prøve 15 | B22: 2668 | C22: 2716 | D22: 2.553499727 | E22: 2668 | F22: 2687 | G22: 4.612589583 | H22: 2668 | I22: 2674 | J22: 6.139699067 | K22: 2668 | L22: 2688 | M22: 5.132869985 | N22: 2668 | O22: 2742 | P22: 6.325769634 | R22: 15 | S22: 14.775 | T22: 21.6 | U22: 17.73 | X22: 15 | Y22: 14.775 | Z22: 0.2 | AA22: 15.54301646 | AB22: 10 | AE22: Prøve 15 | AF22: 0.2971846941 | AG22: 0.1182700263 | AH22: 0.03743917711 | AI22: 0.1244715768 | AJ22: 0.4559742181 | AK22: -1.666666667 | AL22: 1.666666667
A23: Prøve 16 | B23: 62 | C23: 62 | D23: 2.553499727 | E23: 62 | F23: 63 | G23: 4.879261939 | H23: 62 | I23: 62 | J23: 6.139699067 | K23: 62 | L23: 62 | M23: 5.132869985 | N23: 62 | O23: 65 | P23: 7.113317715 | R23: 16 | S23: 15.275 | T23: 23.04 | U23: 18.33 | X23: 16 | Y23: 15.275 | Z23: 1.6 | AA23: 16.21078184 | AB23: 12 | AE23: Prøve 16 | AF23: 0 | AG23: 0.2666723558 | AH23: 0 | AI23: 0 | AJ23: 0.7875480808 | AK23: -1.666666667 | AL23: 1.666666667
A24: Prøve 17 | B24: 34 | C24: 35 | D24: 3.036625342 | E24: 34 | F24: 35 | G24: 5.362387554 | H24: 34 | I24: 34 | J24: 6.139699067 | K24: 34 | L24: 34 | M24: 5.132869985 | N24: 34 | O24: 34 | P24: 7.113317715 | R24: 17 | S24: 15.775 | T24: 24.48 | U24: 18.93 | X24: 17 | Y24: 15.775 | Z24: 2.2 | AA24: 16.87854723 | AB24: 14.5 | AE24: Prøve 17 | AF24: 0.4831256146 | AG24: 0.4831256146 | AH24: 0 | AI24: 0 | AJ24: 0 | AK24: -1.666666667 | AL24: 1.666666667
A25: Prøve 18 | B25: 125 | C25: 128 | D25: 3.431900785 | E25: 125 | F25: 124 | G25: 5.228518025 | H25: 125 | I25: 125 | J25: 6.139699067 | K25: 125 | L25: 125 | M25: 5.132869985 | N25: 125 | O25: 128 | P25: 7.508593158 | R25: 18 | S25: 16.275 | T25: 25.92 | U25: 19.53 | X25: 18 | Y25: 16.275 | Z25: 3 | AA25: 17.17 | AB25: 17.17 | AE25: Prøve 18 | AF25: 0.3952754436 | AG25: -0.1338695283 | AH25: 0 | AI25: 0 | AJ25: 0.3952754436 | AK25: -1.666666667 | AL25: 1.666666667
A26: Prøve 19 | B26: 11.1 | C26: 11.3 | D26: 3.729527742 | E26: 11.1 | F26: 11.3 | G26: 5.526144982 | H26: 11.1 | I26: 11 | J26: 5.988868475 | K26: 11.1 | L26: 11.1 | M26: 5.132869985 | N26: 11.1 | O26: 10.7 | P26: 6.896903711 | R26: 19 | S26: 16.775 | T26: 27.36 | U26: 20.13 | X26: 19 | Y26: 16.775 | Z26: 3.6 | AE26: Prøve 19 | AF26: 0.2976269567 | AG26: 0.2976269567 | AH26: -0.150830592 | AI26: 0 | AJ26: -0.6116894475 | AK26: -1.666666667 | AL26: 1.666666667
A27: Prøve 20 | B27: 2980 | C27: 3075 | D27: 4.252554421 | E27: 2980 | F27: 3118 | G27: 6.280619484 | H27: 2980 | I27: 3155 | J27: 6.939955067 | K27: 2980 | L27: 3197 | M27: 6.304362811 | N27: 2980 | O27: 3287 | P27: 8.531103614 | R27: 20 | S27: 17.275 | T27: 28.8 | U27: 20.73 | X27: 20 | Y27: 17.275 | Z27: 4.2 | AE27: Prøve 20 | AF27: 0.523026679 | AG27: 0.754474502 | AH27: 0.9510865913 | AI27: 1.171492826 | AJ27: 1.634199903 | AK27: -1.666666667 | AL27: 1.666666667
A28: Prøve 21 | B28: 3 | C28: 3 | D28: 4.252554421 | E28: 3 | F28: 3 | G28: 6.280619484 | H28: 3 | I28: 3 | J28: 6.939955067 | K28: 3 | L28: 3 | M28: 6.304362811 | N28: 3 | O28: 3 | P28: 8.531103614 | R28: 21 | S28: 17.775 | T28: 30.24 | U28: 21.33 | X28: 21 | Y28: 17.775 | Z28: 5 | AE28: Prøve 21 | AF28: 0 | AG28: 0 | AH28: 0 | AI28: 0 | AJ28: 0 | AK28: -1.666666667 | AL28: 1.666666667
A29: Prøve 22 | B29: 9 | C29: 9 | D29: 4.252554421 | E29: 9 | F29: 9 | G29: 6.280619484 | H29: 9 | I29: 9 | J29: 6.939955067 | K29: 9 | L29: 9 | M29: 6.304362811 | N29: 9 | O29: 9 | P29: 8.531103614 | R29: 22 | S29: 18.275 | T29: 31.68 | U29: 21.93 | X29: 22 | Y29: 18.275 | Z29: 5.6 | AE29: Prøve 22 | AF29: 0 | AG29: 0 | AH29: 0 | AI29: 0 | AJ29: 0 | AK29: -1.666666667 | AL29: 1.666666667
A30: Prøve 23 | B30: 252 | C30: 263 | D30: 4.964636832 | E30: 252 | F30: 277 | G30: 7.857093128 | H30: 252 | I30: 265 | J30: 7.778300708 | K30: 252 | L30: 263 | M30: 7.016445222 | N30: 252 | O30: 267 | P30: 9.494763129 | R30: 23 | S30: 18.775 | T30: 33.12 | U30: 22.53 | X30: 23 | Y30: 18.775 | Z30: 6.4 | AE30: Prøve 23 | AF30: 0.7120824111 | AG30: 1.576473645 | AH30: 0.8383456412 | AI30: 0.7120824111 | AJ30: 0.9636595148 | AK30: -1.666666667 | AL30: 1.666666667
A31: Prøve 24 | B31: 18 | C31: 17 | D31: 4.011996601 | E31: 18 | F31: 18 | G31: 7.857093128 | H31: 18 | I31: 17 | J31: 6.825660477 | K31: 18 | L31: 18 | M31: 7.016445222 | N31: 18 | O31: 17 | P31: 8.542122898 | R31: 24 | S31: 19.275 | T31: 34.56 | U31: 23.13 | X31: 24 | Y31: 19.275 | Z31: 7 | AE31: Prøve 24 | AF31: -0.9526402307 | AG31: 0 | AH31: -0.9526402307 | AI31: 0 | AJ31: -0.9526402307 | AK31: -1.666666667 | AL31: 1.666666667
A32: Prøve 25 | B32: 38 | C32: 36 | D32: 3.110876247 | E32: 38 | F32: 37 | G32: 7.412622344 | H32: 38 | I32: 37 | J32: 6.381189692 | K32: 38 | L32: 38 | M32: 7.016445222 | N32: 38 | O32: 38 | P32: 8.542122898 | R32: 25 | S32: 19.775 | T32: 36 | U32: 23.73 | X32: 25 | Y32: 19.775 | Z32: 7.8 | AE32: Prøve 25 | AF32: -0.9011203545 | AG32: -0.4444707847 | AH32: -0.4444707847 | AI32: 0 | AJ32: 0 | AK32: -1.666666667 | AL32: 1.666666667
A33: Prøve 26 | B33: 2639 | C33: 2589 | D33: 2.792070301 | E33: 2639 | F33: 2603 | G33: 7.183698485 | H33: 2639 | I33: 2635 | J33: 6.355908434 | K33: 2639 | L33: 2617 | M33: 6.876921323 | N33: 2639 | O33: 2731 | P33: 9.113252647 | R33: 26 | S33: 20.275 | T33: 37.44 | U33: 24.33 | X33: 26 | Y33: 20.275 | Z33: 8.6 | AE33: Prøve 26 | AF33: -0.3188059459 | AG33: -0.2289238585 | AH33: -0.0252812588 | AI33: -0.1395238996 | AJ33: 0.5711297495 | AK33: -1.666666667 | AL33: 1.666666667
A34: Prøve 27 | B34: 36 | C34: 35 | D34: 2.322555685 | E34: 36 | F34: 35 | G34: 6.714183869 | H34: 36 | I34: 35 | J34: 5.886393818 | K34: 36 | L34: 36 | M34: 6.876921323 | N34: 36 | O34: 36 | P34: 9.113252647 | R34: 27 | S34: 20.775 | T34: 38.88 | U34: 24.93 | X34: 27 | Y34: 20.775 | Z34: 9.4 | AE34: Prøve 27 | AF34: -0.4695146161 | AG34: -0.4695146161 | AH34: -0.4695146161 | AI34: 0 | AJ34: 0 | AK34: -1.666666667 | AL34: 1.666666667
A35: Prøve 28 | B35: 137 | C35: 139 | D35: 2.564105807 | E35: 137 | F35: 138 | G35: 6.835396525 | H35: 137 | I35: 143 | J35: 6.600788891 | K35: 137 | L35: 143 | M35: 7.591316396 | N35: 137 | O35: 143 | P35: 9.827647721 | R35: 28 | S35: 21.275 | T35: 40.32 | U35: 25.53 | X35: 28 | Y35: 21.275 | Z35: 10.2 | AE35: Prøve 28 | AF35: 0.2415501217 | AG35: 0.1212126555 | AH35: 0.7143950739 | AI35: 0.7143950739 | AJ35: 0.7143950739 | AK35: -1.666666667 | AL35: 1.666666667
A36: Prøve 29 | B36: 165 | C36: 167 | D36: 2.764911449 | E36: 165 | F36: 165 | G36: 6.835396525 | H36: 165 | I36: 163 | J36: 6.39753434 | K36: 165 | L36: 166 | M36: 7.692021637 | N36: 165 | O36: 169 | P36: 10.2268684 | R36: 29 | S36: 21.775 | T36: 41.76 | U36: 26.13 | X36: 29 | Y36: 21.775 | Z36: 11.2 | AE36: Prøve 29 | AF36: 0.2008056419 | AG36: 0 | AH36: -0.2032545516 | AI36: 0.1007052409 | AJ36: 0.3992206837 | AK36: -1.666666667 | AL36: 1.666666667
A37: Prøve 30 | B37: 3 | C37: 3 | D37: 2.764911449 | E37: 3 | F37: 3 | G37: 6.835396525 | H37: 3 | I37: 3 | J37: 6.39753434 | K37: 3 | L37: 3 | M37: 7.692021637 | N37: 3 | O37: 3 | P37: 10.2268684 | R37: 30 | S37: 22.275 | T37: 43.2 | U37: 26.73 | X37: 30 | Y37: 22.275 | Z37: 12 | AE37: Prøve 30 | AF37: 0 | AG37: 0 | AH37: 0 | AI37: 0 | AJ37: 0 | AK37: -1.666666667 | AL37: 1.666666667
A38: Prøve 31 | B38: 15 | C38: 15 | D38: 2.764911449 | E38: 15 | F38: 15 | G38: 6.835396525 | H38: 15 | I38: 14 | J38: 5.247653148 | K38: 15 | L38: 15 | M38: 7.692021637 | N38: 15 | O38: 14 | P38: 9.076987213 | R38: 31 | S38: 22.775 | T38: 44.64 | U38: 27.33 | X38: 31 | Y38: 22.775 | Z38: 13 | AE38: Prøve 31 | AF38: 0 | AG38: 0 | AH38: -1.149881191 | AI38: 0 | AJ38: -1.149881191 | AK38: -1.666666667 | AL38: 1.666666667
A39: Prøve 32 | B39: 623 | C39: 621 | D39: 2.711320834 | E39: 623 | F39: 614 | G39: 6.592870014 | H39: 623 | I39: 628 | J39: 5.38088061 | K39: 623 | L39: 642 | M39: 8.192718052 | N39: 623 | O39: 641 | P39: 9.551702849 | R39: 32 | S39: 23.275 | T39: 46.08 | U39: 27.93 | X39: 32 | Y39: 23.275 | Z39: 14 | AE39: Prøve 32 | AF39: -0.05359061423 | AG39: -0.2425265107 | AH39: 0.1332274613 | AI39: 0.500696415 | AJ39: 0.4747156356 | AK39: -1.666666667 | AL39: 1.666666667
A40: Prøve 33 | B40: 1971 | C40: 1933 | D40: 2.386857035 | E40: 1971 | F40: 1957 | G40: 6.474064351 | H40: 1971 | I40: 1962 | J40: 5.304602826 | K40: 1971 | L40: 1958 | M40: 8.082426651 | N40: 1971 | O40: 2069 | P40: 10.36044236 | R40: 33 | S40: 23.775 | T40: 47.52 | U40: 28.53 | X40: 33 | Y40: 23.775 | Z40: 15.2 | AE40: Prøve 33 | AF40: -0.3244637991 | AG40: -0.1188056626 | AH40: -0.07627778379 | AI40: -0.110291401 | AJ40: 0.8087395099 | AK40: -1.666666667 | AL40: 1.666666667
A41: Prøve 34 | B41: 1291 | C41: 1334 | D41: 2.932937629 | E41: 1291 | F41: 1307 | G41: 6.679353064 | H41: 1291 | I41: 1370 | J41: 6.294496626 | K41: 1291 | L41: 1400 | M41: 9.433345397 | N41: 1291 | O41: 1404 | P41: 11.75891225 | R41: 34 | S41: 24.275 | T41: 48.96 | U41: 29.13 | X41: 34 | Y41: 24.275 | Z41: 16.4 | AE41: Prøve 34 | AF41: 0.5460805938 | AG41: 0.205288713 | AH41: 0.9898937996 | AI41: 1.350918746 | AJ41: 1.398469896 | AK41: -1.666666667 | AL41: 1.666666667
A42: Prøve 35 | B42: 57 | C42: 56 | D42: 2.637944677 | E42: 57 | F42: 57 | G42: 6.679353064 | H42: 57 | I42: 56 | J42: 5.999503674 | K42: 57 | L42: 58 | M42: 9.723207776 | N42: 57 | O42: 58 | P42: 12.04877463 | R42: 35 | S42: 24.775 | T42: 50.4 | U42: 29.73 | X42: 35 | Y42: 24.775 | Z42: 17.8 | AE42: Prøve 35 | AF42: -0.2949929517 | AG42: 0 | AH42: -0.2949929517 | AI42: 0.2898623785 | AJ42: 0.2898623785 | AK42: -1.666666667 | AL42: 1.666666667
A43: Prøve 36 | B43: 12 | C43: 11 | D43: 1.187755061 | E43: 12 | F43: 11 | G43: 5.229163448 | H43: 12 | I43: 12 | J43: 5.999503674 | K43: 12 | L43: 12 | M43: 9.723207776 | N43: 12 | O43: 12 | P43: 12.04877463 | R43: 36 | S43: 25.275 | T43: 51.84 | U43: 30.33 | X43: 36 | Y43: 25.275 | Z43: 19.4 | AE43: Prøve 36 | AF43: -1.450189616 | AG43: -1.450189616 | AH43: 0 | AI43: 0 | AJ43: 0 | AK43: -1.666666667 | AL43: 1.666666667
A44: Prøve 37 | B44: 6.1 | C44: 5.9 | D44: 0.6321480565 | E44: 6.1 | F44: 5.6 | G44: 3.803793891 | H44: 6.1 | I44: 5.4 | J44: 3.968006714 | K44: 6.1 | L44: 6 | M44: 9.44771941 | N44: 6.1 | O44: 6 | P44: 11.77328627 | R44: 37 | S44: 25.775 | T44: 53.28 | U44: 30.93 | X44: 37 | Y44: 25.775 | Z44: 21.6 | AE44: Prøve 37 | AF44: -0.5556070045 | AG44: -1.425369557 | AH44: -2.03149696 | AI44: -0.2754883659 | AJ44: -0.2754883659 | AK44: -1.666666667 | AL44: 1.666666667
A45: Prøve 38 | B45: 3.9 | C45: 3.3 | D45: -2.152086688 | E45: 3.9 | F45: 3.2 | G45: 0.5066981684 | H45: 3.9 | I45: 4.1 | J45: 4.801513723 | K45: 3.9 | L45: 3.81 | M45: 9.058596677 | N45: 3.9 | O45: 4.13 | P45: 12.7283005 | R45: 37.82 | S45: 26.185 | T45: 54.4608 | U45: 31.422 | X45: 38 | Y45: 26.185 | Z45: 26.185 | AE45: Prøve 38 | AF45: -2.784234744 | AG45: -3.297095722 | AH45: 0.8335070096 | AI45: -0.3891227333 | AJ45: 0.9550142306 | AK45: -1.666666667 | AL45: 1.666666667
R46: 36 | S46: 19.4 | T46: 51.84 | U46: 23.28 | X46: 40
R47: 35 | S47: 17.8 | T47: 50.4 | U47: 21.36
R48: 34 | S48: 16.4 | T48: 48.96 | U48: 19.68
R49: 33 | S49: 15.2 | T49: 47.52 | U49: 18.24
R50: 32 | S50: 14 | T50: 46.08 | U50: 16.8
R51: 31 | S51: 13 | T51: 44.64 | U51: 15.6
R52: 30 | S52: 12 | T52: 43.2 | U52: 14.4
R53: 29 | S53: 11.2 | T53: 41.76 | U53: 13.44
R54: 28 | S54: 10.2 | T54: 40.32 | U54: 12.24
R55: 27 | S55: 9.4 | T55: 38.88 | U55: 11.28
R56: 26 | S56: 8.6 | T56: 37.44 | U56: 10.32
R57: 25 | S57: 7.8 | T57: 36 | U57: 9.36
R58: 24 | S58: 7 | T58: 34.56 | U58: 8.4
R59: 23 | S59: 6.4 | T59: 33.12 | U59: 7.68
R60: 22 | S60: 5.6 | T60: 31.68 | U60: 6.72
R61: 21 | S61: 5 | T61: 30.24 | U61: 6
R62: 20 | S62: 4.2 | T62: 28.8 | U62: 5.04
R63: 19 | S63: 3.6 | T63: 27.36 | U63: 4.32
R64: 18 | S64: 3 | T64: 25.92 | U64: 3.6
R65: 17 | S65: 2.2 | T65: 24.48 | U65: 2.64
R66: 16 | S66: 1.6 | T66: 23.04 | U66: 1.92
R67: 15 | S67: 0.2 | T67: 21.6 | U67: 0.24
R68: 14.94 | S68: 0 | T68: 21.5136 | U68: 0
R69: 15 | S69: -0.2 | T69: 21.6 | U69: -0.24
R70: 16 | S70: -1.6 | T70: 23.04 | U70: -1.92
R71: 17 | S71: -2.2 | T71: 24.48 | U71: -2.64
R72: 18 | S72: -3 | T72: =R72/K_1^2 -> 25.92 | U72: =S72/K_1 -> -3.6 | V72: =R72/K_2^2 ->  | W72: =S72/K_2 -> 
R73: 19 | S73: -3.6 | T73: 27.36 | U73: -4.32
R74: 20 | S74: -4.2 | T74: 28.8 | U74: -5.04
R75: 21 | S75: -5 | T75: 30.24 | U75: -6
R76: 22 | S76: -5.6 | T76: 31.68 | U76: -6.72
R77: 23 | S77: -6.4 | T77: 33.12 | U77: -7.68
R78: 24 | S78: -7 | T78: 34.56 | U78: -8.4
R79: 25 | S79: -7.8 | T79: 36 | U79: -9.36
R80: 26 | S80: -8.6 | T80: 37.44 | U80: -10.32
R81: 27 | S81: -9.4 | T81: 38.88 | U81: -11.28
R82: 28 | S82: -10.2 | T82: 40.32 | U82: -12.24
R83: 29 | S83: -11.2 | T83: 41.76 | U83: -13.44
R84: 30 | S84: -12 | T84: 43.2 | U84: -14.4
R85: 31 | S85: -13 | T85: 44.64 | U85: -15.6
R86: 32 | S86: -14 | T86: 46.08 | U86: -16.8
R87: 33 | S87: -15.2 | T87: 47.52 | U87: -18.24
R88: 34 | S88: -16.4 | T88: 48.96 | U88: -19.68
R89: 35 | S89: -17.8 | T89: 50.4 | U89: -21.36
R90: 36 | S90: -19.4 | T90: 51.84 | U90: -23.28
R91: 37 | S91: -21.6 | T91: 53.28 | U91: -25.92
R92: 37.82 | S92: -26.185 | T92: 54.4608 | U92: -31.422
R93: 37 | S93: -25.775 | T93: 53.28 | U93: -30.93
R94: 36 | S94: -25.275 | T94: 51.84 | U94: -30.33
R95: 35 | S95: -24.775 | T95: 50.4 | U95: -29.73
R96: 34 | S96: -24.275 | T96: 48.96 | U96: -29.13
R97: 33 | S97: -23.775 | T97: 47.52 | U97: -28.53
R98: 32 | S98: -23.275 | T98: 46.08 | U98: -27.93
R99: 31 | S99: -22.775 | T99: 44.64 | U99: -27.33
R100: 30 | S100: -22.275 | T100: 43.2 | U100: -26.73
R101: 29 | S101: -21.775 | T101: 41.76 | U101: -26.13
R102: 28 | S102: -21.275 | T102: 40.32 | U102: -25.53
R103: 27 | S103: -20.775 | T103: 38.88 | U103: -24.93
R104: 26 | S104: -20.275 | T104: 37.44 | U104: -24.33
R105: 25 | S105: -19.775 | T105: 36 | U105: -23.73
R106: 24 | S106: -19.275 | T106: 34.56 | U106: -23.13
R107: 23 | S107: -18.775 | T107: 33.12 | U107: -22.53
R108: 22 | S108: -18.275 | T108: 31.68 | U108: -21.93
R109: 21 | S109: -17.775 | T109: 30.24 | U109: -21.33
R110: 20 | S110: -17.275 | T110: 28.8 | U110: -20.73
R111: 19 | S111: -16.775 | T111: 27.36 | U111: -20.13
R112: 18 | S112: -16.275 | T112: 25.92 | U112: -19.53
R113: 17 | S113: -15.775 | T113: 24.48 | U113: -18.93
R114: 16 | S114: -15.275 | T114: 23.04 | U114: -18.33
R115: 15 | S115: -14.775 | T115: 21.6 | U115: -17.73
R116: 14 | S116: -14.275 | T116: 20.16 | U116: -17.13
R117: 13 | S117: -13.775 | T117: 18.72 | U117: -16.53
R118: 12 | S118: -13.275 | T118: 17.28 | U118: -15.93
R119: 11 | S119: -12.775 | T119: 15.84 | U119: -15.33
R120: 10 | S120: -12.275 | T120: 14.4 | U120: -14.73
R121: 9 | S121: -11.775 | T121: 12.96 | U121: -14.13
R122: 8 | S122: -11.275 | T122: 11.52 | U122: -13.53
R123: 7 | S123: -10.775 | T123: 10.08 | U123: -12.93
R124: 6 | S124: -10.275 | T124: 8.64 | U124: -12.33
R125: 5 | S125: -9.775 | T125: 7.2 | U125: -11.73
R126: 4 | S126: -9.275 | T126: 5.76 | U126: -11.13
R127: 3 | S127: -8.775 | T127: 4.32 | U127: -10.53
R128: 2 | S128: -8.275 | T128: 2.88 | U128: -9.93
R129: 1 | S129: -7.775 | T129: 1.44 | U129: -9.33

Sheet Konklusjon
B3: Vurdering av funn og annen viktig informasjon til forsøket:
B5: CV = 6% og Tea = 10%. 28.05.19
B7: Kvalitetsmål:
B8: Bias ≤ 5%
B9: Impresisjon ≤ 6,0%
B10: TE ≤ 10%
B15: Konklusjon:
B19: Holdbarheten for TNT (prøverør: Vacuette med separasjonsgel, heparinplasma) er 5 døgn når prøven er oppbevart i kjøleskap.
B20: (det kan se ut som om 9 dagers betingelser er ok, men 6 og 7 dager i kjøleskap er testet i filen "Buksemetoden TNT (dag 6-7)", og ble der ikke akseptert.
B23: Dato og signatur: | D23: 2020-03-18 | E23: Ragnhild Heier Skauby, valideringsansvarlig overlege.

Sheet Krav
A2: CVa | B2: CVi | C2: CVbw | D2: BIAS 1/3*CVi | E2: BIAS 1/4*Total | F2: Impresisjon | G2: TE | H2: BIAS klinisk vurdering | I2: Impresisjon (klinisk vurdering)
A3: 1.6 | B3: 30.5 | C3: 90 | D3: =$B$3/3 -> 10.16666667 | E3: =0.25*(SQRT((POWER(B3,2)+(POWER(C3,2))))) -> 23.75690689 | F3: 15.3 | G3: =(1.65*$I$3)+$H$3 -> 18.2 | H3: 5 | I3: 8
